fUST/lending_fUST_20240727
["ID","MTS","AMOUNT","RATE_DAILY","PERIOD"]
[333383050,1722085839354,-500.0,0.00013698,2]
[333383051,1722085839370,-500.0,0.00013698,2]
[333383052,1722085839381,-500.0,0.00013698,2]
[333383053,1722085839391,-500.0,0.00013698,2]
[333383054,1722085839401,-500.0,0.00013698,2]
[333383055,1722085839411,-500.0,0.00013698,2]
[333383056,1722085839421,-500.0,0.00013698,2]
[333383057,1722085839431,-500.0,0.00013698,2]
[333383058,1722085839440,-500.0,0.00013698,2]
[333383059,1722085839449,-500.0,0.00013698,2]
[333383060,1722085839459,-500.0,0.00013698,2]
[333383061,1722085839468,-500.0,0.00013698,2]
[333383062,1722085839477,-151.0,0.00013698,2]
[333383063,1722085839487,-151.0,0.00013698,2]
[333383064,1722085839497,-502.02012757,0.00013698,2]
[333383065,1722085839507,-500.0,0.00013698,2]
[333383066,1722085839517,-151.0,0.00013698,2]
[333383067,1722085839527,-500.0,0.00013698,2]
[333383068,1722085839536,-500.0,0.00013698,2]
[333383069,1722085839546,-500.0,0.00013698,2]
[333383070,1722085839556,-404.57924825,0.00013698,2]
[333383079,1722085840178,-95.42075175,0.00013698,2]
[333383080,1722085840188,-500.0,0.00013698,2]
[333383081,1722085840197,-500.0,0.00013698,2]
[333383082,1722085840207,-500.0,0.00013698,2]
[333383083,1722085840217,-500.0,0.00013698,2]
[333383084,1722085840227,-500.0,0.00013698,2]
[333383085,1722085840237,-151.450595,0.00013698,2]
[333383086,1722085840246,-500.0,0.00013698,2]
[333383087,1722085840256,-151.450595,0.00013698,2]
[333383088,1722085840266,-500.0,0.00013698,2]
[333383089,1722085840276,-500.0,0.00013698,2]
[333383090,1722085840286,-561.88678,0.00013698,2]
[333383091,1722085840295,-869.55,0.00013698,2]
[333383092,1722085840305,-561.88678,0.00013698,2]
[333383093,1722085840315,-500.0,0.00013698,2]
[333383094,1722085840324,-500.0,0.00013698,2]
[333383095,1722085840334,-515.00000001,0.00013698,2]
[333383096,1722085840344,-1431.71,0.00013698,2]
[333383097,1722085840354,-500.0,0.00013698,2]
[333383098,1722085840367,-500.0,0.00013698,2]
[333383099,1722085840377,-500.0,0.00013698,2]
[333383100,1722085840387,-500.0,0.00013698,2]
[333383101,1722085840396,-500.0,0.00013698,2]
[333383102,1722085840406,-3158.63,0.00013698,2]
[333383103,1722085840416,-1022.85,0.00013698,2]
[333383104,1722085840426,-500.0,0.00013698,2]
[333383105,1722085840437,-694.29,0.00013698,2]
[333383106,1722085840448,-500.0,0.00013698,2]
[333383107,1722085840458,-151.0,0.00013698,2]
[333383108,1722085840468,-792.36,0.00013698,2]
[333383109,1722085840477,-500.0,0.00013698,2]
[333383110,1722085840487,-500.0,0.00013698,2]
[333383111,1722085840497,-500.0,0.00013698,2]
[333383112,1722085840506,-500.0,0.00013698,2]
[333383113,1722085840516,-500.0,0.00013698,2]
[333383114,1722085840525,-500.0,0.00013698,2]
[333383115,1722085840535,-779.73,0.00013698,2]
[333383116,1722085840544,-500.0,0.00013698,2]
[333383117,1722085840554,-619.38123641,0.00013698,2]
[333383118,1722085840564,-524.91,0.00013698,2]
[333383119,1722085840573,-1664.93,0.00013698,2]
[333383120,1722085840583,-5564.04,0.00013698,2]
[333383121,1722085840593,-151.0,0.00013698,2]
[333383122,1722085840603,-500.0,0.00013698,2]
[333383123,1722085840615,-2361.16,0.00013698,2]
[333383124,1722085840625,-547.49,0.00013698,2]
[333383125,1722085840635,-1172.21,0.00013698,2]
[333383126,1722085840644,-500.0,0.00013698,2]
[333383127,1722085840654,-1056.93,0.00013698,2]
[333383128,1722085840664,-604.99,0.00013698,2]
[333383129,1722085840674,-500.0,0.00013698,2]
[333383130,1722085840687,-500.0,0.00013698,2]
[333383131,1722085840697,-500.0,0.00013698,2]
[333383132,1722085840706,-151.0,0.00013698,2]
[333383133,1722085840718,-500.0,0.00013698,2]
[333383134,1722085840728,-904.05,0.00013698,2]
[333383135,1722085840737,-500.0,0.00013698,2]
[333383136,1722085840747,-1026.71,0.00013698,2]
[333383137,1722085840757,-151.0,0.00013698,2]
[333383138,1722085840767,-736.25,0.00013698,2]
[333383139,1722085840776,-500.0,0.00013698,2]
[333383140,1722085840786,-500.0,0.00013698,2]
[333383141,1722085840795,-151.0,0.00013698,2]
[333383142,1722085840805,-500.0,0.00013698,2]
[333383143,1722085840815,-637.77,0.00013698,2]
[333383144,1722085840826,-3829.13,0.00013698,2]
[333383145,1722085840836,-500.0,0.00013698,2]
[333383146,1722085840846,-494.200945,0.00013698,2]
[333383147,1722085840859,-502.07,0.00013698,2]
[333383148,1722085840869,-494.200945,0.00013698,2]
[333383149,1722085840879,-500.0,0.00013698,2]
[333383150,1722085840888,-930.28,0.00013698,2]
[333383151,1722085840898,-191.54529551,0.00013698,2]
[333383152,1722085840907,-712.66,0.00013698,2]
[333383153,1722085840916,-2219.78,0.00013698,2]
[333383154,1722085840926,-500.0,0.00013698,2]
[333383155,1722085840937,-1551.46,0.00013698,2]
[333383156,1722085840948,-660.151023,0.00013698,2]
[333383157,1722085840959,-773.17,0.00013698,2]
[333383158,1722085840969,-660.151023,0.00013698,2]
[333383159,1722085840979,-810.2,0.00013698,2]
[333383160,1722085840988,-823.22,0.00013698,2]
[333383161,1722085840998,-559.79,0.00013698,2]
[333383162,1722085841007,-525.47,0.00013698,2]
[333383163,1722085841017,-203.18865096,0.00013698,2]
[333383164,1722085841027,-826.46,0.00013698,2]
[333383165,1722085841037,-500.0,0.00013698,2]
[333383166,1722085841047,-940.84,0.00013698,2]
[333383167,1722085841058,-500.0,0.00013698,2]
[333383168,1722085841067,-337.87035,0.00013698,2]
[333383169,1722085841077,-500.0,0.00013698,2]
[333383170,1722085841087,-556.72,0.00013698,2]
[333383171,1722085841097,-500.0,0.00013698,2]
[333383172,1722085841107,-337.87035,0.00013698,2]
[333383173,1722085841119,-500.0,0.00013698,2]
[333383174,1722085841128,-1194.91,0.00013698,2]
[333383175,1722085841139,-1671.27,0.00013698,2]
[333383176,1722085841148,-1166.89,0.00013698,2]
[333383177,1722085841158,-500.0,0.00013698,2]
[333383178,1722085841168,-151.0,0.00013698,2]
[333383179,1722085841178,-1086.2,0.00013698,2]
[333383180,1722085841187,-700.28,0.00013698,2]
[333383181,1722085841198,-151.0,0.00013698,2]
[333383182,1722085841207,-374.327571,0.00013698,2]
[333383183,1722085841217,-2151.1,0.00013698,2]
[333383184,1722085841227,-374.327571,0.00013698,2]
[333383185,1722085841236,-500.0,0.00013698,2]
[333383186,1722085841246,-500.0,0.00013698,2]
[333383187,1722085841255,-574.78352115,0.00013698,2]
[333383188,1722085841265,-500.0,0.00013698,2]
[333383189,1722085841276,-500.0,0.00013698,2]
[333383190,1722085841285,-500.0,0.00013698,2]
[333383191,1722085841295,-500.0,0.00013698,2]
[333383192,1722085841304,-500.0,0.00013698,2]
[333383193,1722085841314,-500.0,0.00013698,2]
[333383194,1722085841323,-500.0,0.00013698,2]
[333383195,1722085841333,-223.05655118,0.00013698,2]
[333383196,1722085841343,-500.0,0.00013698,2]
[333383197,1722085841352,-150.112233,0.000137,2]
[333383198,1722085841364,-25893.51586338,0.00013746,2]
[333383208,1722085843074,-13646.02627674,0.00013746,2]
[333383209,1722085843084,-150.112233,0.000138,2]
[333383210,1722085843095,-3388.66408279,0.00013972,2]
[333383211,1722085843104,-500.0,0.00013972,2]
[333383212,1722085843117,-548.18,0.00013972,2]
[333383213,1722085843127,-500.0,0.00013972,2]
[333383214,1722085843136,-500.0,0.00013972,2]
[333383215,1722085843145,-500.0,0.00013972,2]
[333383216,1722085843155,-333.69468713,0.00013972,2]
[333383217,1722085843164,-792.76,0.00013972,2]
[333383218,1722085843175,-500.0,0.00013972,2]
[333383219,1722085843185,-500.0,0.00013972,2]
[333383220,1722085843194,-177.86825912,0.00013972,2]
[333383221,1722085843203,-500.0,0.00013972,2]
[333383222,1722085843213,-500.0,0.00013972,2]
[333383223,1722085843223,-851.15,0.00013972,2]
[333383224,1722085843233,-500.0,0.00013972,2]
[333383225,1722085843244,-500.0,0.00013972,2]
[333383226,1722085843255,-500.0,0.00013972,2]
[333383227,1722085843265,-151.0,0.00013972,2]
[333383228,1722085843276,-151.0,0.00013972,2]
[333383229,1722085843286,-151.0,0.00013972,2]
[333383230,1722085843295,-151.0,0.00013972,2]
[333383231,1722085843306,-294.475485,0.00013972,2]
[333383232,1722085843315,-500.0,0.00013972,2]
[333383233,1722085843327,-500.0,0.00013972,2]
[333383234,1722085843338,-553.98,0.00013972,2]
[333383235,1722085843349,-500.113002,0.00013972,2]
[333383236,1722085843359,-500.113002,0.00013972,2]
[333383237,1722085843371,-500.0,0.00013972,2]
[333383238,1722085843381,-500.0,0.00013972,2]
[333383239,1722085843391,-500.0,0.00013972,2]
[333383240,1722085843401,-677.56,0.00013972,2]
[333383241,1722085843411,-500.0,0.00013972,2]
[333383242,1722085843420,-151.0,0.00013972,2]
[333383243,1722085843430,-690.62,0.00013972,2]
[333383244,1722085843440,-151.0,0.00013972,2]
[333383245,1722085843450,-519.87,0.00013972,2]
[333383246,1722085843460,-151.0,0.00013972,2]
[333383247,1722085843470,-500.0,0.00013972,2]
[333383248,1722085843480,-500.0,0.00013972,2]
[333383249,1722085843490,-500.0,0.00013972,2]
[333383250,1722085843500,-767.0,0.00013972,2]
[333383251,1722085843510,-500.0,0.00013972,2]
[333383252,1722085843519,-347.75806308,0.00013972,2]
[333383253,1722085843544,-6.93684307,0.00013972,2]
[333383260,1722085846088,-652.4,0.00013698,2]
[333383261,1722085853331,115.27281483,9.9e-05,2]
[333383262,1722085853355,134.72718517,9.9e-05,2]
[333383263,1722085862293,32.22174383,9.9e-05,2]
[333383264,1722085862317,163.33333268,9.9e-05,2]
[333383265,1722085862341,77.8182858,9.9e-05,2]
[333383266,1722085863159,200.0,0.0001,2]
[333383267,1722085870512,273.37336231,9.9e-05,2]
[333383268,1722085879832,273.37336231,9.9e-05,2]
[333383269,1722085887080,101.39271158,0.0001,2]
[333383270,1722085887100,207.47355892,0.0001,2]
[333383271,1722085887123,3691.1337295,0.0001,2]
[333383272,1722085888096,273.37336231,9.9e-05,2]
[333383273,1722085896663,273.37336231,9.9e-05,2]
[333383274,1722085898046,4000.0,0.0001,2]
[333383275,1722085904855,273.37336231,9.9e-05,2]
[333383276,1722085908840,4000.0,0.0001,2]
[333383277,1722085912904,273.37336231,9.9e-05,2]
[333383278,1722085917766,16274.21667808,9.9e-05,2]
[333383279,1722085919796,4000.0,0.0001,2]
[333383280,1722085921297,8707.16909317,9.9e-05,2]
[333383281,1722085921885,273.37336231,9.9e-05,2]
[333383282,1722085927963,4000.0,0.0001,2]
[333383283,1722085930131,273.37336231,9.9e-05,2]
[333383284,1722085934840,3782.59755445,9.9e-05,2]
[333383285,1722085938360,200.0,0.0001,2]
[333383286,1722085939526,273.37336231,9.9e-05,2]
[333383287,1722085942960,2107.09834524,9.9e-05,2]
[333383288,1722085947591,1448.74464693,0.0001,2]
[333383289,1722085948244,273.37336231,9.9e-05,2]
[333383290,1722085957156,273.37336231,9.9e-05,2]
[333383291,1722085965746,273.37336231,9.9e-05,2]
[333383292,1722085973969,273.37336231,9.9e-05,2]
[333383293,1722085981961,273.37336231,9.9e-05,2]
[333383294,1722085990238,273.37336231,9.9e-05,2]
[333383295,1722085999037,273.37336231,9.9e-05,2]
[333383297,1722086007343,273.37336231,9.9e-05,2]
[333383298,1722086015384,273.37336231,9.9e-05,2]
[333383299,1722086024249,273.37336231,9.9e-05,2]
[333383300,1722086033001,273.37336231,9.9e-05,2]
[333383301,1722086041136,273.37336231,9.9e-05,2]
[333383302,1722086050120,273.37336231,9.9e-05,2]
[333383303,1722086058935,273.37336231,9.9e-05,2]
[333383304,1722086067030,273.37336231,9.9e-05,2]
[333383305,1722086075256,273.37336231,9.9e-05,2]
[333383306,1722086076365,200.0,0.0001,2]
[333383307,1722086083176,273.37336231,9.9e-05,2]
[333383308,1722086091399,273.37336231,9.9e-05,2]
[333383309,1722086100037,273.37336231,9.9e-05,2]
[333383310,1722086108331,273.37336231,9.9e-05,2]
[333383311,1722086116915,273.37336231,9.9e-05,2]
[333383312,1722086125684,273.37336231,9.9e-05,2]
[333383313,1722086127557,4708.68993712,0.0001,2]
[333383314,1722086131742,3782.59755445,0.0001,2]
[333383315,1722086132981,2107.09834524,0.0001,2]
[333383316,1722086134347,273.37336231,9.9e-05,2]
[333383317,1722086134929,154.65203293,0.0001,2]
[333383318,1722086143138,273.37336231,9.9e-05,2]
[333383319,1722086143234,200.0,0.0001,2]
[333383320,1722086148787,16274.21667808,0.0001,2]
[333383321,1722086151094,273.37336231,9.9e-05,2]
[333383322,1722086159254,273.37336231,9.9e-05,2]
[333383323,1722086167848,273.37336231,9.9e-05,2]
[333383324,1722086176732,273.37336231,9.9e-05,2]
[333383325,1722086184707,273.37336231,9.9e-05,2]
[333383326,1722086193760,273.37336231,9.9e-05,2]
[333383327,1722086201747,273.37336231,9.9e-05,2]
[333383328,1722086202510,200.0,0.0001,2]
[333383329,1722086207346,1625.88982265,9.9e-05,2]
[333383330,1722086210033,273.37336231,9.9e-05,2]
[333383331,1722086218273,273.37336231,9.9e-05,2]
[333383332,1722086222931,154.79093031,9.9e-05,2]
[333383333,1722086226467,273.37336231,9.9e-05,2]
[333383334,1722086227745,3782.59755445,9.9e-05,2]
[333383335,1722086229075,4708.68993712,9.9e-05,2]
[333383336,1722086232800,1240.91979,0.0001,2]
[333383337,1722086234428,273.37336231,9.9e-05,2]
[333383338,1722086243241,273.37336231,9.9e-05,2]
[333383339,1722086251214,273.37336231,9.9e-05,2]
[333383340,1722086259937,273.37336231,9.9e-05,2]
[333383341,1722086267088,8347.65712072,9.9e-05,2]
[333383342,1722086268758,273.37336231,9.9e-05,2]
[333383343,1722086276966,273.37336231,9.9e-05,2]
[333383344,1722086284930,273.37336231,9.9e-05,2]
[333383345,1722086294417,273.37336231,9.9e-05,2]
[333383346,1722086302399,273.37336231,9.9e-05,2]
[333383347,1722086311417,273.37336231,9.9e-05,2]
[333383348,1722086320065,273.37336231,9.9e-05,2]
[333383349,1722086328902,273.37336231,9.9e-05,2]
[333383350,1722086336996,273.37336231,9.9e-05,2]
[333383351,1722086345842,273.37336231,9.9e-05,2]
[333383352,1722086354370,273.37336231,9.9e-05,2]
[333383353,1722086362570,273.37336231,9.9e-05,2]
[333383354,1722086370645,273.37336231,9.9e-05,2]
[333383355,1722086378878,273.37336231,9.9e-05,2]
[333383356,1722086387030,273.37336231,9.9e-05,2]
[333383357,1722086395171,246.52764468,9.9e-05,2]
[333383358,1722086439936,269.25458933,9.999e-05,7]
[333383359,1722086485065,154.65203293,9.999e-05,4]
[333383360,1722086536929,269.25458933,9.999e-05,7]
[333383361,1722086569082,154.65203293,9.999e-05,4]
[333383362,1722086632934,269.25458933,9.999e-05,7]
[333383363,1722086662083,154.65203293,9.999e-05,4]
[333383364,1722086741169,-167.301715,0.00011083,2]
[333383365,1722086741196,-288.89538853,0.00011358,2]
[333383366,1722086748952,516.80343441,9.999e-05,7]
[333383367,1722086752096,165.41277873,9.999e-05,4]
[333383369,1722086831184,-195.23593255,0.00011358,2]
[333383370,1722086835235,-104.76406745,0.00011358,2]
[333383371,1722086835259,-168.60929486,0.00011358,2]
[333383372,1722086836101,-131.39070514,0.00011358,2]
[333383373,1722086836128,-575.03644846,0.00011359,2]
[333383374,1722086844958,269.25458933,9.999e-05,7]
[333383376,1722086886468,228.73677946,9.9e-05,2]
[333383378,1722086934968,269.25458933,9.999e-05,7]
[333383379,1722086946113,-250.0,0.00011262,2]
[333383380,1722086946138,-17.29,0.00011358,2]
[333383381,1722086949089,-166.948929,0.00011358,2]
[333383382,1722086949959,269.25458933,9.999e-05,7]
[333383384,1722086966087,-115.761071,0.00011358,2]
[333383385,1722086966109,-300.0,0.00011358,2]
[333383386,1722086966131,-24324.96355154,0.00011359,2]
[333383388,1722086968285,-250.0,0.00011704,2]
[333383389,1722086968309,-250.0,0.00011736,2]
[333383390,1722086968333,-250.0,0.00011768,2]
[333383391,1722086968360,-250.0,0.000118,2]
[333383392,1722086968382,-250.0,0.00011832,2]
[333383393,1722086968403,-167.301715,0.00011838,2]
[333383394,1722086968427,-250.0,0.00011864,2]
[333383395,1722086968448,-250.0,0.00011896,2]
[333383396,1722086968470,-250.0,0.00011929,2]
[333383397,1722086968492,-250.0,0.00011961,2]
[333383398,1722086968514,-250.0,0.00011993,2]
[333383399,1722086968539,-250.0,0.00012025,2]
[333383400,1722086968563,-250.0,0.00012057,2]
[333383401,1722086968588,-250.0,0.00012089,2]
[333383402,1722086968610,-250.0,0.00012121,2]
[333383403,1722086968634,-250.0,0.00012153,2]
[333383404,1722086968658,-250.0,0.00012185,2]
[333383405,1722086968681,-250.0,0.00012218,2]
[333383406,1722086968706,-250.0,0.0001225,2]
[333383407,1722086968728,-250.0,0.00012282,2]
[333383408,1722086968749,-191.47619051,0.000123,2]
[333383409,1722086968773,-250.0,0.00012314,2]
[333383412,1722086987441,269.25458933,0.0001212,7]
[333383445,1722087033342,-167.301715,0.00012594,2]
[333383446,1722087033353,-5774.00907364,0.00013,2]
[333383729,1722087038682,-1774.50728618,0.00013,2]
[333383730,1722087038692,-160.612973,0.00013425,2]
[333383731,1722087038702,-300.0,0.00013587,2]
[333383732,1722087038711,-51046.6388787,0.00013588,2]
[333383733,1722087038720,-51046.6388787,0.0001359,2]
[333383734,1722087038731,-23567.38755353,0.00013598,2]
[333383740,1722087040667,-240.39010308,0.00013598,2]
[333383741,1722087040682,-2538.74425938,0.00013598,2]
[333383742,1722087040693,-59756.97896728,0.00013598,2]
[333383743,1722087040703,-1011.39369225,0.000136,2]
[333383744,1722087040714,-150.112233,0.000136,2]
[333383745,1722087040724,-5000.0,0.000136,2]
[333383746,1722087040735,-21497.62069665,0.000136,2]
[333383747,1722087040746,-1817.12572833,0.000136,2]
[333383748,1722087040756,-87544.92189535,0.00013686,2]
[333383850,1722087043178,-10787.08665628,0.00013686,2]
[333384159,1722087046272,-1438.1,0.00013686,2]
[333384388,1722087170992,273.37336231,9.9e-05,2]
[333384390,1722087178931,273.37336231,9.9e-05,2]
[333384391,1722087187102,273.37336231,9.9e-05,2]
[333384392,1722087193963,269.25458933,9.999e-05,7]
[333384393,1722087195104,273.37336231,9.9e-05,2]
[333384394,1722087202660,200.0,0.0001,2]
[333384395,1722087204008,273.37336231,9.9e-05,2]
[333384396,1722087211977,273.37336231,9.9e-05,2]
[333384397,1722087220811,273.37336231,9.9e-05,2]
[333384398,1722087225345,7445.81872161,9.9e-05,2]
[333384399,1722087228867,273.37336231,9.9e-05,2]
[333384400,1722087232950,600.24609405,9.999e-05,2]
[333384401,1722087237145,273.37336231,9.9e-05,2]
[333384402,1722087245133,273.37336231,9.9e-05,2]
[333384403,1722087246508,154.63660398,9.999e-05,2]
[333384404,1722087247203,157.69767951,9.999e-05,2]
[333384405,1722087248948,154.63660398,0.0001,2]
[333384406,1722087252346,154.76012181,9.999e-05,2]
[333384407,1722087254455,273.37336231,9.9e-05,2]
[333384408,1722087255688,848.82145141,9.999e-05,2]
[333384409,1722087256959,287.48002697,0.0001,2]
[333384410,1722087257730,154.63660398,9.999e-05,2]
[333384411,1722087259846,941.97058039,9.999e-05,2]
[333384412,1722087262198,157.69767951,9.999e-05,2]
[333384413,1722087262503,273.37336231,9.9e-05,2]
[333384414,1722087263207,200.0,0.0001,2]
[333384415,1722087263247,248.83425172,9.999e-05,2]
[333384416,1722087270729,273.37336231,9.9e-05,2]
[333384417,1722087271252,341.81287151,9.999e-05,2]
[333384418,1722087272992,154.63660398,9.999e-05,2]
[333384419,1722087273060,154.63660398,9.999e-05,2]
[333384420,1722087273127,154.80649189,9.999e-05,2]
[333384421,1722087274298,568.18099482,9.999e-05,2]
[333384422,1722087278620,273.37336231,9.9e-05,2]
[333384423,1722087282699,156.65797586,9.999e-05,2]
[333384424,1722087289124,273.37336231,9.9e-05,2]
[333384425,1722087293968,269.25458933,9.999e-05,7]
[333384426,1722087297071,273.37336231,9.9e-05,2]
[333384427,1722087299193,493.89593847,9.999e-05,2]
[333384428,1722087302928,154.63660398,9.999e-05,2]
[333384429,1722087305260,273.37336231,9.9e-05,2]
[333384430,1722087314412,273.37336231,9.9e-05,2]
[333384431,1722087319938,273.57313143,9.999e-05,2]
[333384432,1722087322549,273.37336231,9.9e-05,2]
[333384433,1722087330518,273.37336231,9.9e-05,2]
[333384434,1722087333155,200.0,0.0001,2]
[333384435,1722087334205,157.69767951,9.999e-05,2]
[333384436,1722087335358,521.74223491,9.999e-05,2]
[333384437,1722087338859,273.37336231,9.9e-05,2]
[333384438,1722087343946,154.63660398,0.0001,2]
[333384439,1722087345520,154.63660398,9.999e-05,2]
[333384440,1722087347482,273.37336231,9.9e-05,2]
[333384441,1722087349726,848.82145141,9.999e-05,2]
[333384442,1722087356426,273.37336231,9.9e-05,2]
[333384443,1722087364221,157.69767951,9.999e-05,2]
[333384444,1722087364311,567.80356952,9.999e-05,2]
[333384445,1722087364468,273.37336231,9.9e-05,2]
[333384446,1722087373916,273.37336231,9.9e-05,2]
[333384447,1722087377729,323.93313452,9.999e-05,2]
[333384448,1722087378211,341.57974733,9.999e-05,2]
[333384449,1722087381910,273.37336231,9.9e-05,2]
[333384450,1722087384477,269.25458933,9.999e-05,7]
[333384451,1722087385851,1029.29862923,9.999e-05,2]
[333384452,1722087391080,273.37336231,9.9e-05,2]
[333384453,1722087399692,273.37336231,9.9e-05,2]
[333384454,1722087402500,200.0,0.0001,2]
[333384455,1722087404175,493.89593847,9.999e-05,2]
[333384456,1722087408514,273.37336231,9.9e-05,2]
[333384457,1722087416658,273.37336231,9.9e-05,2]
[333384458,1722087424853,273.37336231,9.9e-05,2]
[333384459,1722087431964,248.31861157,0.0001,2]
[333384460,1722087433072,273.37336231,9.9e-05,2]
[333384461,1722087434523,154.63660398,9.999e-05,2]
[333384462,1722087441973,273.37336231,9.9e-05,2]
[333384463,1722087450031,273.37336231,9.9e-05,2]
[333384464,1722087450206,521.74223491,9.999e-05,2]
[333384465,1722087458357,273.37336231,9.9e-05,2]
[333384466,1722087465687,848.82145141,9.999e-05,2]
[333384467,1722087467088,273.37336231,9.9e-05,2]
[333384468,1722087476559,273.37336231,9.9e-05,2]
[333384469,1722087482491,269.25458933,9.999e-05,7]
[333384470,1722087483192,493.89593847,9.999e-05,2]
[333384471,1722087484528,273.37336231,9.9e-05,2]
[333384472,1722087487916,323.93313452,9.999e-05,2]
[333384473,1722087492710,273.37336231,9.9e-05,2]
[333384474,1722087502093,273.37336231,9.9e-05,2]
[333384475,1722087507091,1000.0,0.00023349,120]
[333384476,1722087511801,273.37336231,9.9e-05,2]
[333384477,1722087519996,273.37336231,9.9e-05,2]
[333384478,1722087528225,273.37336231,9.9e-05,2]
[333384479,1722087535522,154.63660398,9.999e-05,2]
[333384480,1722087536743,273.37336231,9.9e-05,2]
[333384481,1722087544969,273.37336231,9.9e-05,2]
[333384482,1722087550704,521.74223491,9.999e-05,2]
[333384483,1722087554797,273.37336231,9.9e-05,2]
[333384484,1722087558721,848.82145141,9.999e-05,2]
[333384485,1722087563186,273.37336231,9.9e-05,2]
[333384486,1722087565524,154.63660398,9.999e-05,2]
[333384487,1722087571068,273.37336231,9.9e-05,2]
[333384488,1722087579129,273.37336231,9.9e-05,2]
[333384489,1722087587676,273.37336231,9.9e-05,2]
[333384490,1722087595957,273.37336231,9.9e-05,2]
[333384491,1722087604089,273.37336231,9.9e-05,2]
[333384492,1722087613052,273.37336231,9.9e-05,2]
[333384493,1722087622206,273.37336231,9.9e-05,2]
[333384494,1722087630487,273.37336231,9.9e-05,2]
[333384495,1722087638541,273.37336231,9.9e-05,2]
[333384496,1722087647071,273.37336231,9.9e-05,2]
[333384497,1722087653210,847.37855356,9.999e-05,2]
[333384498,1722087655403,273.37336231,9.9e-05,2]
[333384499,1722087656712,520.71954567,9.999e-05,2]
[333384500,1722087663563,273.37336231,9.9e-05,2]
[333384501,1722087671783,273.37336231,9.9e-05,2]
[333384502,1722087681147,273.37336231,9.9e-05,2]
[333384503,1722087689165,273.37336231,9.9e-05,2]
[333384504,1722087695178,375.79677847,9.999e-05,2]
[333384505,1722087696546,174.94849337,9.999e-05,2]
[333384506,1722087697442,273.37336231,9.9e-05,2]
[333384507,1722087707019,273.37336231,9.9e-05,2]
[333384508,1722087715305,273.37336231,9.9e-05,2]
[333384509,1722087723525,273.37336231,9.9e-05,2]
[333384510,1722087732332,273.37336231,9.9e-05,2]
[333384511,1722087740304,273.37336231,9.9e-05,2]
[333384512,1722087748694,273.37336231,9.9e-05,2]
[333384513,1722087756633,273.37336231,9.9e-05,2]
[333384514,1722087765468,273.37336231,9.9e-05,2]
[333384515,1722087773382,273.37336231,9.9e-05,2]
[333384519,1722087782305,273.37336231,9.9e-05,2]
[333384520,1722087786298,154.80649189,9.999e-05,2]
[333384521,1722087791602,273.37336231,9.9e-05,2]
[333384522,1722087800414,273.37336231,9.9e-05,2]
[333384523,1722087801170,375.79677847,9.999e-05,2]
[333384524,1722087808459,273.37336231,9.9e-05,2]
[333384525,1722087816631,273.37336231,9.9e-05,2]
[333384526,1722087824553,273.37336231,9.9e-05,2]
[333384527,1722087833430,273.37336231,9.9e-05,2]
[333384528,1722087841828,273.37336231,9.9e-05,2]
[333384529,1722087852325,273.37336231,9.9e-05,2]
[333384530,1722087860311,273.37336231,9.9e-05,2]
[333384531,1722087869270,273.37336231,9.9e-05,2]
[333384532,1722087877225,273.37336231,9.9e-05,2]
[333384533,1722087886145,273.37336231,9.9e-05,2]
[333384534,1722087894703,273.37336231,9.9e-05,2]
[333384535,1722087903126,273.37336231,9.9e-05,2]
[333384536,1722087911086,273.37336231,9.9e-05,2]
[333384537,1722087913700,164.50960606,9.999e-05,2]
[333384538,1722087917300,154.88678402,9.999e-05,2]
[333384539,1722087918219,375.34235707,9.999e-05,2]
[333384540,1722087919391,273.37336231,9.9e-05,2]